fUSD/lending_fUSD_20250113
["ID","MTS","AMOUNT","RATE_DAILY","PERIOD"]
[348806174,1736789465011,-500.0,0.00011092,2]
[348806175,1736789465021,-1474.42,0.00011092,2]
[348806176,1736789465031,-500.0,0.00011092,2]
[348806177,1736789465040,-1194.18,0.00011092,2]
[348806178,1736789465050,-5242.15,0.00011092,2]
[348806179,1736789465059,-602.8,0.00011092,2]
[348806180,1736789465069,-500.0,0.00011092,2]
[348806181,1736789465079,-2360.29,0.00011092,2]
[348806182,1736789465088,-596.47,0.00011092,2]
[348806183,1736789465098,-1352.23,0.00011092,2]
[348806184,1736789465108,-500.0,0.00011092,2]
[348806185,1736789465117,-893.39,0.00011092,2]
[348806186,1736789465127,-500.0,0.00011092,2]
[348806187,1736789465136,-1603.75,0.00011092,2]
[348806188,1736789465145,-500.0,0.00011092,2]
[348806189,1736789465154,-500.0,0.00011092,2]
[348806190,1736789465163,-500.0,0.00011092,2]
[348806191,1736789465174,-1295.57,0.00011092,2]
[348806192,1736789465183,-500.0,0.00011092,2]
[348806193,1736789465193,-2161.69,0.00011092,2]
[348806194,1736789465203,-500.0,0.00011092,2]
[348806195,1736789465212,-1828.01,0.00011092,2]
[348806196,1736789465222,-500.0,0.00011092,2]
[348806197,1736789465232,-1024.72,0.00011092,2]
[348806198,1736789465241,-3242.95,0.00011092,2]
[348806199,1736789465251,-500.0,0.00011092,2]
[348806200,1736789465260,-500.0,0.00011092,2]
[348806201,1736789465270,-541.15,0.00011092,2]
[348806202,1736789465281,-500.0,0.00011092,2]
[348806203,1736789465290,-962.13,0.00011092,2]
[348806204,1736789465300,-977.39,0.00011092,2]
[348806205,1736789465311,-3349.73,0.00011092,2]
[348806206,1736789465322,-500.0,0.00011092,2]
[348806207,1736789465332,-500.0,0.00011092,2]
[348806208,1736789465342,-755.384315,0.00011092,2]
[348806209,1736789465351,-1792.63,0.00011092,2]
[348806210,1736789465361,-1992.33,0.00011092,2]
[348806211,1736789465370,-898.56,0.00011092,2]
[348806212,1736789465379,-500.0,0.00011092,2]
[348806213,1736789465389,-2892.25,0.00011092,2]
[348806214,1736789465399,-573.54,0.00011092,2]
[348806215,1736789465409,-562.095232,0.00011092,2]
[348806216,1736789465421,-500.0,0.00011092,2]
[348806217,1736789465431,-2613.03,0.00011092,2]
[348806218,1736789465440,-692.69,0.00011092,2]
[348806219,1736789465449,-720.13,0.00011092,2]
[348806220,1736789465459,-732.19,0.00011092,2]
[348806221,1736789465469,-500.0,0.00011092,2]
[348806222,1736789465478,-1361.66,0.00011092,2]
[348806223,1736789465488,-570.35589425,0.00011092,2]
[348806224,1736789465499,-1022.89,0.00011092,2]
[348806225,1736789465508,-626.77,0.00011092,2]
[348806226,1736789465519,-568.68,0.00011092,2]
[348806227,1736789465528,-444.97464702,0.00011092,2]
[348806228,1736789465538,-606.7,0.00011092,2]
[348806229,1736789465548,-500.0,0.00011092,2]
[348806230,1736789465558,-500.0,0.00011092,2]
[348806231,1736789465567,-500.0,0.00011092,2]
[348806232,1736789465578,-567.02489201,0.00011092,2]
[348806233,1736789465588,-500.0,0.00011092,2]
[348806234,1736789465598,-500.0,0.00011092,2]
[348806235,1736789465608,-1699.69,0.00011092,2]
[348806236,1736789465617,-573.82,0.00011092,2]
[348806237,1736789465627,-500.0,0.00011092,2]
[348806238,1736789465637,-506.25,0.00011092,2]
[348806239,1736789465647,-500.0,0.00011092,2]
[348806240,1736789465657,-300.0,0.00011092,2]
[348806241,1736789465667,-500.0,0.00011093,2]
[348806242,1736789465676,-1255.89,0.00011093,2]
[348806243,1736789465685,-961.31,0.00011093,2]
[348806244,1736789465697,-2512.37,0.00011093,2]
[348806245,1736789465707,-1325.84,0.00011093,2]
[348806246,1736789465716,-1827.85,0.00011093,2]
[348806247,1736789465726,-3096.14,0.00011093,2]
[348806248,1736789465735,-1519.79,0.00011093,2]
[348806249,1736789465744,-500.0,0.00011093,2]
[348806250,1736789465754,-500.0,0.00011093,2]
[348806251,1736789465764,-500.0,0.00011093,2]
[348806252,1736789465774,-3417.73,0.00011093,2]
[348806253,1736789465783,-649.66,0.00011093,2]
[348806254,1736789465792,-500.0,0.00011093,2]
[348806255,1736789465802,-500.0,0.00011093,2]
[348806256,1736789465811,-500.0,0.00011093,2]
[348806257,1736789465821,-500.0,0.00011093,2]
[348806258,1736789465831,-500.0,0.00011093,2]
[348806259,1736789465840,-502.76734816,0.00011093,2]
[348806260,1736789465851,-513.63,0.00011093,2]
[348806261,1736789465861,-500.0,0.00011093,2]
[348806262,1736789465872,-500.0,0.00011093,2]
[348806263,1736789465882,-500.0,0.00011093,2]
[348806264,1736789465891,-478.31,0.00011093,2]
[348806265,1736789465902,-500.0,0.00011093,2]
[348806266,1736789465912,-500.0,0.00011093,2]
[348806267,1736789465925,-500.0,0.00011093,2]
[348806268,1736789465935,-423.31969594,0.00011093,2]
[348806269,1736789465944,-500.0,0.00011093,2]
[348806270,1736789465954,-376.779353,0.00011093,2]
[348806271,1736789465964,-536.52,0.00011093,2]
[348806272,1736789465974,-500.0,0.00011093,2]
[348806273,1736789465984,-500.0,0.00011093,2]
[348806274,1736789465994,-500.0,0.00011093,2]
[348806275,1736789466004,-789.75,0.00011093,2]
[348806276,1736789466013,-578.12,0.00011093,2]
[348806277,1736789466023,-500.0,0.00011093,2]
[348806278,1736789466032,-552.14,0.00011093,2]
[348806279,1736789466042,-500.0,0.00011093,2]
[348806280,1736789466051,-500.0,0.00011093,2]
[348806281,1736789466062,-500.0,0.00011093,2]
[348806282,1736789466072,-500.0,0.00011093,2]
[348806283,1736789466081,-500.0,0.00011093,2]
[348806284,1736789466091,-500.0,0.00011093,2]
[348806285,1736789466101,-500.0,0.00011093,2]
[348806286,1736789466111,-500.0,0.00011093,2]
[348806287,1736789466120,-936.68,0.00011093,2]
[348806288,1736789466131,-500.0,0.00011093,2]
[348806289,1736789466140,-500.0,0.00011093,2]
[348806290,1736789466150,-500.0,0.00011093,2]
[348806291,1736789466160,-548.55,0.00011093,2]
[348806292,1736789466174,-500.0,0.00011093,2]
[348806293,1736789466183,-500.0,0.00011093,2]
[348806294,1736789466194,-500.0,0.00011093,2]
[348806295,1736789466204,-471.38,0.00011093,2]
[348806296,1736789466214,-500.0,0.00011093,2]
[348806297,1736789466224,-500.0,0.00011093,2]
[348806298,1736789466237,-500.0,0.00011093,2]
[348806299,1736789466248,-917.73,0.00011093,2]
[348806300,1736789466258,-500.0,0.00011093,2]
[348806301,1736789466268,-500.0,0.00011093,2]
[348806302,1736789466278,-298.92325668,0.00011093,2]
[348806303,1736789466288,-618.14,0.00011093,2]
[348806304,1736789466299,-500.0,0.00011093,2]
[348806305,1736789466309,-650.64,0.00011093,2]
[348806306,1736789466319,-1418.5,0.00011093,2]
[348806307,1736789466329,-500.0,0.00011093,2]
[348806308,1736789466339,-500.0,0.00011093,2]
[348806309,1736789466348,-500.0,0.00011093,2]
[348806310,1736789466359,-742.14,0.00011093,2]
[348806311,1736789466369,-500.0,0.00011093,2]
[348806312,1736789466379,-500.0,0.00011093,2]
[348806313,1736789466389,-500.0,0.00011093,2]
[348806314,1736789466399,-1130.8,0.00011093,2]
[348806315,1736789466408,-697.9,0.00011093,2]
[348806316,1736789466420,-500.0,0.00011093,2]
[348806317,1736789466429,-500.0,0.00011093,2]
[348806318,1736789466439,-759.61,0.00011093,2]
[348806319,1736789466448,-500.0,0.00011093,2]
[348806320,1736789466458,-500.0,0.00011093,2]
[348806321,1736789466468,-500.0,0.00011093,2]
[348806322,1736789466478,-500.0,0.00011093,2]
[348806323,1736789466488,-500.0,0.00011093,2]
[348806324,1736789466498,-500.0,0.00011093,2]
[348806325,1736789466508,-2741.02,0.00011093,2]
[348806326,1736789466519,-757.35,0.00011093,2]
[348806327,1736789466529,-500.0,0.00011093,2]
[348806328,1736789466539,-500.0,0.00011093,2]
[348806329,1736789466549,-703.48,0.00011093,2]
[348806330,1736789466559,-1444.04,0.00011093,2]
[348806331,1736789466569,-500.0,0.00011093,2]
[348806332,1736789466579,-718.2,0.00011093,2]
[348806333,1736789466588,-589.58,0.00011093,2]
[348806334,1736789466650,-3579.12,0.00011093,2]
[348806335,1736789466660,-500.0,0.00011093,2]
[348806336,1736789466671,-500.0,0.00011093,2]
[348806337,1736789466681,-500.0,0.00011093,2]
[348806338,1736789466691,-1062.35,0.00011093,2]
[348806339,1736789466700,-689.6,0.00011093,2]
[348806340,1736789466710,-500.0,0.00011093,2]
[348806341,1736789466720,-500.0,0.00011093,2]
[348806342,1736789466730,-1023.71,0.00011093,2]
[348806343,1736789466739,-629.07,0.00011093,2]
[348806344,1736789466749,-722.38,0.00011093,2]
[348806345,1736789466759,-564.7,0.00011093,2]
[348806346,1736789466769,-768.6,0.00011093,2]
[348806347,1736789466779,-500.0,0.00011093,2]
[348806348,1736789466788,-4003.4,0.00011093,2]
[348806349,1736789466798,-682.62,0.00011093,2]
[348806350,1736789466807,-500.0,0.00011093,2]
[348806351,1736789466816,-862.3,0.00011093,2]
[348806352,1736789466826,-500.0,0.00011093,2]
[348806353,1736789466835,-716.85,0.00011093,2]
[348806354,1736789466845,-1020.95,0.00011093,2]
[348806355,1736789466854,-500.0,0.00011093,2]
[348806356,1736789466863,-680.17,0.00011093,2]
[348806357,1736789466872,-500.0,0.00011093,2]
[348806358,1736789466882,-500.0,0.00011093,2]
[348806359,1736789466891,-500.0,0.00011093,2]
[348806360,1736789466900,-661.97,0.00011093,2]
[348806361,1736789466910,-976.49,0.00011093,2]
[348806362,1736789466924,-752.64,0.00011093,2]
[348806363,1736789466934,-1000.0,0.00011093,2]
[348806364,1736789466943,-714.39,0.00011093,2]
[348806365,1736789466953,-500.0,0.00011093,2]
[348806366,1736789466962,-780.26,0.00011093,2]
[348806367,1736789466971,-500.0,0.00011093,2]
[348806368,1736789466980,-500.0,0.00011093,2]
[348806369,1736789466990,-584.45,0.00011093,2]
[348806370,1736789467000,-699.85,0.00011093,2]
[348806371,1736789467010,-500.0,0.00011093,2]
[348806372,1736789467020,-500.0,0.00011093,2]
[348806373,1736789467030,-500.0,0.00011093,2]
[348806374,1736789467039,-1506.6,0.00011094,2]
[348806375,1736789467049,-1460.16,0.00011094,2]
[348806376,1736789467058,-872.27,0.00011094,2]
[348806377,1736789467068,-1766.08,0.00011094,2]
[348806378,1736789467077,-5849.77,0.00011094,2]
[348806379,1736789467087,-500.0,0.00011095,2]
[348806380,1736789467096,-500.0,0.00011095,2]
[348806381,1736789467105,-500.0,0.00011095,2]
[348806382,1736789467114,-500.0,0.00011095,2]
[348806383,1736789467124,-1000.0,0.00011121,2]
[348806384,1736789467134,-429.81509458,0.0001116,2]
[348806385,1736789467143,-1000.0,0.000112,2]
[348806386,1736789467153,-357.33932202,0.00011255,2]
[348806387,1736789467163,-162.22791989,0.00011255,2]
[348806388,1736789467175,-250.0,0.00011258,2]
[348806389,1736789467185,-1000.0,0.000113,2]
[348806390,1736789467195,-524.87,0.0001134,2]
[348806391,1736789467205,-1706.58,0.0001134,2]
[348806392,1736789467214,-564.29,0.0001134,2]
[348806393,1736789467223,-728.34,0.0001134,2]
[348806394,1736789467234,-500.0,0.00011351,2]
[348806395,1736789467244,-271.286,0.00011353,2]
[348806396,1736789467253,-4159.928,0.00011354,2]
[348806397,1736789467262,-291.45008086,0.00011365,2]
[348806398,1736789467272,-500.0,0.00011365,2]
[348806399,1736789467281,-319.44,0.00011365,2]
[348806400,1736789467291,-414.44969735,0.00011365,2]
[348806401,1736789467300,-500.0,0.00011365,2]
[348806402,1736789467312,-613.27737635,0.00011365,2]
[348806403,1736789467322,-500.0,0.00011365,2]
[348806404,1736789467331,-500.0,0.00011365,2]
[348806405,1736789467341,-192.12347331,0.00011365,2]
[348806406,1736789467350,-500.0,0.00011365,2]
[348806407,1736789467359,-500.0,0.00011365,2]
[348806408,1736789467369,-500.0,0.00011365,2]
[348806409,1736789467378,-500.0,0.00011365,2]
[348806410,1736789467387,-626.9,0.00011365,2]
[348806411,1736789467397,-500.0,0.00011365,2]
[348806412,1736789467406,-500.0,0.00011365,2]
[348806413,1736789467415,-500.0,0.00011365,2]
[348806414,1736789467432,-500.0,0.00011365,2]
[348806415,1736789467441,-500.0,0.00011365,2]
[348806416,1736789467450,-500.0,0.00011365,2]
[348806417,1736789467459,-500.0,0.00011365,2]
[348806418,1736789467468,-500.0,0.00011365,2]
[348806419,1736789467478,-500.0,0.00011365,2]
[348806420,1736789467488,-500.0,0.00011365,2]
[348806421,1736789467497,-500.0,0.00011365,2]
[348806422,1736789467507,-500.0,0.00011365,2]
[348806423,1736789467516,-500.0,0.00011365,2]
[348806424,1736789467526,-182.11676451,0.00011365,2]
[348806425,1736789467536,-542.66156171,0.00011365,2]
[348806426,1736789467545,-500.0,0.00011365,2]
[348806427,1736789467554,-500.0,0.00011365,2]
[348806428,1736789467564,-500.0,0.00011365,2]
[348806429,1736789467573,-500.0,0.00011365,2]
[348806430,1736789467582,-500.0,0.00011365,2]
[348806431,1736789467591,-500.0,0.00011365,2]
[348806432,1736789467600,-500.0,0.00011365,2]
[348806433,1736789467610,-500.0,0.00011365,2]
[348806434,1736789467620,-500.0,0.00011365,2]
[348806435,1736789467629,-500.0,0.00011365,2]
[348806436,1736789467638,-500.0,0.00011365,2]
[348806437,1736789467647,-500.0,0.00011365,2]
[348806438,1736789467656,-500.0,0.00011365,2]
[348806439,1736789467666,-500.0,0.00011365,2]
[348806440,1736789467679,-500.0,0.00011365,2]
[348806441,1736789467689,-500.0,0.00011365,2]
[348806442,1736789467698,-500.0,0.00011365,2]
[348806443,1736789467707,-500.0,0.00011365,2]
[348806444,1736789467717,-500.0,0.00011365,2]
[348806445,1736789467726,-223.30898261,0.00011365,2]
[348806446,1736789467736,-500.0,0.00011365,2]
[348806447,1736789467745,-500.0,0.00011365,2]
[348806448,1736789467754,-500.0,0.00011365,2]
[348806449,1736789467764,-500.0,0.00011365,2]
[348806450,1736789467774,-554.00196058,0.00011365,2]
[348806451,1736789467783,-500.0,0.00011365,2]
[348806452,1736789467792,-500.0,0.00011365,2]
[348806453,1736789467801,-162.50260467,0.00011365,2]
[348806454,1736789467811,-500.0,0.00011365,2]
[348806455,1736789467820,-500.0,0.00011365,2]
[348806456,1736789467829,-500.0,0.00011365,2]
[348806457,1736789467838,-500.0,0.00011365,2]
[348806458,1736789467847,-500.0,0.00011365,2]
[348806459,1736789467856,-500.0,0.00011365,2]
[348806460,1736789467866,-500.0,0.00011365,2]
[348806461,1736789467875,-500.0,0.00011365,2]
[348806462,1736789467885,-500.0,0.00011365,2]
[348806463,1736789467894,-500.0,0.00011365,2]
[348806464,1736789467904,-500.0,0.00011365,2]
[348806465,1736789467913,-500.0,0.00011365,2]
[348806466,1736789467928,-249.06824298,0.00011365,2]
[348806467,1736789467938,-500.0,0.00011365,2]
[348806468,1736789467947,-500.0,0.00011365,2]
[348806469,1736789467956,-500.0,0.00011365,2]
[348806470,1736789467966,-500.0,0.00011365,2]
[348806471,1736789467974,-500.0,0.00011365,2]
[348806472,1736789467984,-500.0,0.00011365,2]
[348806473,1736789467993,-500.0,0.00011365,2]
[348806474,1736789468003,-500.0,0.00011365,2]
[348806475,1736789468012,-500.0,0.00011365,2]
[348806476,1736789468021,-500.0,0.00011365,2]
[348806477,1736789468031,-500.0,0.00011365,2]
[348806478,1736789468041,-500.0,0.00011365,2]
[348806479,1736789468050,-500.0,0.00011365,2]
[348806480,1736789468060,-500.0,0.00011365,2]
[348806481,1736789468072,-500.0,0.00011365,2]
[348806482,1736789468082,-500.0,0.00011365,2]
[348806483,1736789468092,-558.78,0.00011365,2]
[348806484,1736789468102,-510.62,0.00011365,2]
[348806485,1736789468112,-500.0,0.00011365,2]
[348806486,1736789468122,-500.0,0.00011365,2]
[348806487,1736789468132,-500.0,0.00011365,2]
[348806488,1736789468143,-500.0,0.00011365,2]
[348806489,1736789468153,-500.0,0.00011365,2]
[348806490,1736789468163,-1887.52,0.00011365,2]
[348806491,1736789468178,-500.0,0.00011365,2]
[348806492,1736789468187,-500.0,0.00011365,2]
[348806493,1736789468197,-500.0,0.00011365,2]
[348806494,1736789468206,-500.0,0.00011365,2]
[348806495,1736789468215,-506.91,0.00011365,2]
[348806496,1736789468225,-500.0,0.00011365,2]
[348806497,1736789468237,-500.0,0.00011365,2]
[348806498,1736789468247,-500.0,0.00011365,2]
[348806499,1736789468257,-500.0,0.00011365,2]
[348806500,1736789468266,-500.0,0.00011365,2]
[348806501,1736789468277,-301.89223643,0.00011365,2]
[348806502,1736789468286,-500.0,0.00011365,2]
[348806503,1736789468296,-500.0,0.00011365,2]
[348806504,1736789468307,-500.0,0.00011365,2]
[348806505,1736789468319,-500.0,0.00011365,2]
[348806506,1736789468329,-500.0,0.00011365,2]
[348806507,1736789468339,-500.0,0.00011365,2]
[348806508,1736789468349,-178.86,0.00011365,2]
[348806509,1736789468359,-500.0,0.00011365,2]
[348806510,1736789468369,-500.0,0.00011365,2]
[348806511,1736789468379,-500.0,0.00011365,2]
[348806512,1736789468389,-500.0,0.00011365,2]
[348806513,1736789468399,-500.0,0.00011365,2]
[348806514,1736789468410,-500.0,0.00011365,2]
[348806515,1736789468422,-540.32,0.00011365,2]
[348806516,1736789468433,-500.0,0.00011365,2]
[348806517,1736789468443,-479.96868809,0.00011365,2]
[348806518,1736789468456,-500.0,0.00011365,2]
[348806519,1736789468467,-500.0,0.00011365,2]
[348806520,1736789468478,-500.0,0.00011365,2]
[348806521,1736789468487,-500.0,0.00011365,2]
[348806522,1736789468498,-500.0,0.00011365,2]
[348806523,1736789468509,-500.0,0.00011365,2]
[348806524,1736789468519,-500.0,0.00011365,2]
[348806525,1736789468529,-500.0,0.00011366,2]
[348806526,1736789468539,-500.0,0.00011366,2]
[348806527,1736789468549,-515.03,0.00011366,2]
[348806528,1736789468559,-641.14,0.00011366,2]
[348806529,1736789468569,-500.0,0.00011366,2]
[348806530,1736789468579,-550.42,0.00011366,2]
[348806531,1736789468589,-500.0,0.00011366,2]
[348806532,1736789468599,-500.0,0.00011366,2]
[348806533,1736789468609,-500.0,0.00011366,2]
[348806534,1736789468619,-500.0,0.00011366,2]
[348806535,1736789468630,-500.0,0.00011366,2]
[348806536,1736789468640,-500.0,0.00011366,2]
[348806537,1736789468649,-500.0,0.00011366,2]
[348806538,1736789468660,-500.0,0.00011366,2]
[348806539,1736789468672,-544.78,0.00011366,2]
[348806540,1736789468683,-500.0,0.00011366,2]
[348806541,1736789468694,-500.0,0.00011366,2]
[348806542,1736789468704,-333.19,0.00011366,2]
[348806543,1736789468714,-500.0,0.00011366,2]
[348806544,1736789468723,-500.0,0.00011366,2]
[348806545,1736789468733,-169.54,0.00011366,2]
[348806546,1736789468743,-519.61,0.00011366,2]
[348806547,1736789468753,-500.0,0.00011366,2]
[348806548,1736789468763,-500.0,0.00011366,2]
[348806549,1736789468772,-504.63,0.00011366,2]
[348806550,1736789468782,-752.85,0.00011366,2]
[348806551,1736789468793,-500.0,0.00011366,2]
[348806552,1736789468803,-500.0,0.00011366,2]
[348806553,1736789468812,-937.69,0.00011366,2]
[348806554,1736789468822,-748.27,0.00011366,2]
[348806555,1736789468832,-500.0,0.00011366,2]
[348806556,1736789468842,-158.1,0.00011366,2]
[348806557,1736789468851,-500.0,0.00011366,2]
[348806558,1736789468861,-500.0,0.00011366,2]
[348806559,1736789468871,-919.9,0.00011366,2]
[348806560,1736789468880,-766.36,0.00011366,2]
[348806561,1736789468891,-831.27,0.00011366,2]
[348806562,1736789468901,-652.15,0.00011366,2]
[348806563,1736789468911,-500.0,0.00011366,2]
[348806564,1736789468925,-1618.06,0.00011366,2]
[348806565,1736789468935,-500.0,0.00011366,2]
[348806566,1736789468944,-197.18,0.00011366,2]
[348806567,1736789468954,-503.86,0.00011366,2]
[348806568,1736789468964,-500.0,0.00011366,2]
[348806569,1736789468974,-500.0,0.00011366,2]
[348806570,1736789468984,-738.35,0.00011366,2]
[348806571,1736789468994,-602.52,0.00011366,2]
[348806572,1736789469003,-500.0,0.00011366,2]
[348806573,1736789469014,-704.36,0.00011366,2]
[348806574,1736789469023,-500.0,0.00011366,2]
[348806575,1736789469033,-805.11,0.00011366,2]
[348806576,1736789469043,-599.92,0.00011366,2]
[348806577,1736789469053,-500.0,0.00011366,2]
[348806578,1736789469063,-500.0,0.00011366,2]
[348806579,1736789469073,-500.0,0.00011366,2]
[348806580,1736789469083,-1474.42,0.00011366,2]
[348806581,1736789469092,-500.0,0.00011366,2]
[348806582,1736789469102,-1194.18,0.00011366,2]
[348806583,1736789469112,-5242.15,0.00011366,2]
[348806584,1736789469122,-602.8,0.00011366,2]
[348806585,1736789469132,-500.0,0.00011366,2]
[348806586,1736789469142,-2360.29,0.00011366,2]
[348806587,1736789469152,-596.47,0.00011366,2]
[348806588,1736789469162,-1352.23,0.00011366,2]
[348806589,1736789469174,-500.0,0.00011366,2]
[348806590,1736789469184,-893.39,0.00011366,2]
[348806591,1736789469194,-500.0,0.00011366,2]
[348806592,1736789469204,-1603.75,0.00011366,2]
[348806593,1736789469214,-500.0,0.00011366,2]
[348806594,1736789469224,-500.0,0.00011366,2]
[348806595,1736789469237,-1295.57,0.00011366,2]
[348806596,1736789469246,-500.0,0.00011366,2]
[348806597,1736789469256,-2161.69,0.00011366,2]
[348806598,1736789469267,-500.0,0.00011366,2]
[348806599,1736789469278,-1828.01,0.00011366,2]
[348806600,1736789469288,-500.0,0.00011366,2]
[348806601,1736789469298,-1024.72,0.00011366,2]
[348806602,1736789469308,-3242.95,0.00011366,2]
[348806603,1736789469317,-500.0,0.00011366,2]
[348806604,1736789469328,-500.0,0.00011366,2]
[348806605,1736789469338,-541.15,0.00011366,2]
[348806606,1736789469348,-500.0,0.00011366,2]
[348806607,1736789469358,-962.13,0.00011366,2]
[348806608,1736789469368,-977.39,0.00011366,2]
[348806609,1736789469378,-3349.73,0.00011366,2]
[348806610,1736789469388,-500.0,0.00011366,2]
[348806611,1736789469399,-500.0,0.00011366,2]
[348806612,1736789469410,-755.384315,0.00011366,2]
[348806613,1736789469421,-1792.63,0.00011366,2]
[348806614,1736789469431,-1992.33,0.00011366,2]
[348806615,1736789469441,-898.56,0.00011366,2]
[348806616,1736789469451,-500.0,0.00011366,2]
[348806617,1736789469461,-2892.25,0.00011366,2]
[348806618,1736789469471,-573.54,0.00011366,2]
[348806619,1736789469481,-562.095232,0.00011366,2]
[348806620,1736789469492,-500.0,0.00011366,2]
[348806621,1736789469501,-692.69,0.00011366,2]
[348806622,1736789469511,-2613.03,0.00011366,2]
[348806623,1736789469520,-720.13,0.00011366,2]
[348806624,1736789469530,-732.19,0.00011366,2]
[348806625,1736789469539,-1361.66,0.00011366,2]
[348806626,1736789469550,-1022.89,0.00011366,2]
[348806627,1736789469561,-626.77,0.00011366,2]
[348806628,1736789469571,-568.68,0.00011366,2]
[348806629,1736789469580,-606.7,0.00011366,2]
[348806630,1736789469591,-500.0,0.00011366,2]
[348806631,1736789469604,-500.0,0.00011366,2]
[348806632,1736789469614,-500.0,0.00011366,2]
[348806633,1736789469624,-500.0,0.00011366,2]
[348806634,1736789469634,-500.0,0.00011366,2]
[348806635,1736789469643,-1699.69,0.00011366,2]
[348806636,1736789469654,-573.82,0.00011366,2]
[348806637,1736789469663,-500.0,0.00011366,2]
[348806638,1736789469675,-506.25,0.00011366,2]
[348806639,1736789469685,-500.0,0.00011366,2]
[348806640,1736789469695,-1255.89,0.00011367,2]
[348806641,1736789469704,-961.31,0.00011367,2]
[348806642,1736789469714,-2512.37,0.00011367,2]
[348806643,1736789469723,-1325.84,0.00011367,2]
[348806644,1736789469733,-1827.85,0.00011367,2]
[348806645,1736789469743,-3096.14,0.00011367,2]
[348806646,1736789469754,-1519.79,0.00011367,2]
[348806647,1736789469763,-500.0,0.00011367,2]
[348806648,1736789469773,-500.0,0.00011367,2]
[348806649,1736789469783,-500.0,0.00011367,2]
[348806650,1736789469792,-3417.73,0.00011367,2]
[348806651,1736789469802,-500.0,0.00011367,2]
[348806652,1736789469812,-500.0,0.00011367,2]
[348806653,1736789469821,-500.0,0.00011367,2]
[348806654,1736789469831,-581.83910054,0.00011367,2]
[348806655,1736789469840,-167.58,0.00011367,2]
[348806656,1736789469851,-500.0,0.00011367,2]
[348806657,1736789469860,-500.0,0.00011367,2]
[348806658,1736789469870,-500.0,0.00011367,2]
[348806659,1736789469880,-500.0,0.00011367,2]
[348806660,1736789469889,-493.26085069,0.00011367,2]
[348806661,1736789469899,-500.0,0.00011367,2]
[348806662,1736789469909,-789.75,0.00011367,2]
[348806663,1736789469919,-500.0,0.00011367,2]
[348806664,1736789469932,-552.14,0.00011367,2]
[348806665,1736789469942,-500.0,0.00011367,2]
[348806666,1736789469951,-500.0,0.00011367,2]
[348806667,1736789469961,-500.0,0.00011367,2]
[348806668,1736789469971,-533.68,0.00011367,2]
[348806669,1736789469981,-500.0,0.00011367,2]
[348806670,1736789469991,-500.0,0.00011367,2]
[348806671,1736789470001,-936.68,0.00011367,2]
[348806672,1736789470011,-500.0,0.00011367,2]
[348806673,1736789470021,-500.0,0.00011367,2]